Workbook

Sheet Лист1
A2: Перечень региональных учебников и учебных пособий по татарскому языку и литературе используемых в образовательном процессе на 2017/2018 учебный год по МКУ "Отдел образования" исполнительного комитета Мамадышского муниципального района
A3: № | B3: Порядковый номер учебника в ФП | C3: Фамилия и инициалы автора(ов) учебника | D3: Наименование учебника | E3: Класс | F3: Статус | G3: Наличие | H3: Контингент на 2017-18 учебный год | I3: Нехватка | J3: Примечание | K3: СОШ № 1 | L3: СОШ № 2 | M3: СОШ № 3 | N3: СОШ № 4 | O3: СОШ № 5 | P3: СОШ № 6 | Q3: СОШ № 7 | R3: СОШ № 8 | S3: СОШ № 9 | T3: СОШ № 10 | U3: СОШ № 11 | V3: СОШ № 12 | W3: СОШ № 13 | X3: СОШ № 15 | Y3: СОШ № 17 | Z3: СОШ № 18 | AA3: СОШ № 19 | AB3: СОШ № 20 | AC3: СОШ № 21 | AD3: СОШ № 22 | AE3: СОШ № 23 | AF3: СОШ № 24 | AG3: СОШ № 25 | AH3: СОШ № 26 | AI3: СОШ № 27 | AJ3: СОШ № 28 | AK3: СОШ № 29 | AL3: СОШ № 31 | AM3: СОШ № 32 | AN3: СОШ № 33 | AO3: СОШ № 34 | AP3: СОШ № 35 | AQ3: СОШ № 36 | AR3: СОШ № 37 | AS3: СОШ № 38 | AT3: СОШ № 40 | AU3: СОШ № 43 | AV3: СОШ № 44 | AW3: СОШ № 45 | AX3: СОШ № 46 | AY3: СОШ № 48 | AZ3: СОШ № 49 | BA3: СОШ № 50 | BB3: СОШ № 51 | BC3: СОШ № 52 | BD3: СОШ № 53 | BE3: СОШ № 54 | BF3: СОШ № 55 | BG3: СОШ № 56 | BH3: СОШ № 57 | BI3: СОШ № 58 | BJ3: СОШ № 60 | BK3: СОШ № 61 | BL3: СОШ № 64 | BM3: СОШ № 65 | BN3: СОШ № 76 | BO3: СОШ № 77 | BP3: Пролицей 78 | BQ3: СОШ № 78 | BR3: СОШ № 79 | BS3: СОШ № 84 | BT3: 47 | BU3: итого | BV3: 82 | BW3: 86 | BX3: 87 | BY3: Наименование издателя(ей) учебника | BZ3: Документ подтверждающий статус издания
A4: I. Перечень региональных учебников
A5: Для общеобразовательных организаций с обучением на татарском языке
A6: 1 | B6: 3.1.1.4.1 | C6: Мияссарова И.Х., Гарифуллина Ф.Ш., Шамсутдинова Р.Р. | D6: Алифба | E6: 1 | F6: Учебник | G6: 619 | H6: 285 | I6: 0 | M6: 28 | N6: 95 | V6: 52 | Z6: 22 | AD6: 26 | BC6: 208 | BE6: 156 | BI6: 32 | BU6: =SUM(K6:BT6) -> 619 | BY6: ООО "Издательство "Магариф-Вакыт" | BZ6: Приказ МОиН РФ от 31.03.2014г. №253.
A7: 2 | B7: 3.1.1.4.2 | C7: Мияссарова И.Х., Файзрахманова К.Ф. | D7: Татарский язык (Татар теле) | E7: 1 | F7: Учебник | G7: 523 | H7: 299 | L7: 125 | M7: 27 | N7: 98 | V7: 27 | Z7: 22 | AC7: 20 | AK7: 106 | BC7: 58 | BI7: 40 | BU7: 523 | BY7: ООО "Издательство "Магариф-Вакыт"
A8: 3 | B8: 3.1.1.4.3 | C8: Мияссарова И.Х., Файзрахманова К.Ф. | D8: Татарский язык (Татар теле ), в 2 частях | E8: 2 | F8: Учебник | G8: 382 | H8: 341 | I8: 0 | L8: 88 | M8: 27 | N8: 64 | V8: 27 | AK8: 82 | BC8: 28 | BE8: 66 | BU8: 382 | BY8: ООО "Издательство "Магариф-Вакыт"
A9: 4 | B9: 3.1.1.4.4 | C9: Мияссарова И.Х., Файзрахманова К.Ф. | D9: Татарский язык (Татар теле), в 2 частях | E9: 3 | F9: Учебник | G9: 448 | H9: 224 | I9: 0 | L9: 126 | M9: 29 | N9: 26 | V9: 29 | Z9: 13 | AK9: 76 | AO9: 14 | AR9: 17 | BC9: 30 | BE9: 58 | BI9: 30 | BU9: 448 | BY9: ООО "Издательство "Магариф-Вакыт"
A10: 5 | B10: 3.1.1.4.5 | C10: Мияссарова И.Х., Файзрахманова К.Ф. | D10: Татарский язык (Татар теле), в 2 частях | E10: 4 | F10: Учебник | G10: 337 | H10: 297 | L10: 125 | M10: 30 | Z10: 15 | AK10: 79 | BE10: 58 | BL10: 30 | BU10: 337 | BY10: ООО "Издательство "Магариф-Вакыт"
A11: 6 | B11: 3.1.1.2.5.1 | C11: Сафиуллина Г.М., Гарифуллина М.Я., Мухаметзянова А.Г., Хасанова Ф.Ф. | D11: Литературное чтение (Эдэби уку), в 2 частях | E11: 1 | F11: Учебник | G11: 326 | H11: 450 | I11: 124 | M11: 27 | N11: 50 | V11: 27 | Z11: 22 | AK11: 106 | BC11: 28 | BE11: 66 | BU11: 326 | BY11: ООО "Издательство "Магариф-Вакыт"
A12: 7 | B12: 3.1.1.2.5.2 | C12: Сафиуллина Г.М., Гарифуллина М.Я., Мухаметзянова А.Г., Хасанова Ф.Ф. | D12: Литературное чтение( Эдэби уку), в 3 частях | E12: 2 | F12: Учебник | G12: 380 | H12: 165 | I12: 0 | L12: 104 | M12: 22 | N12: 52 | V12: 22 | AK12: 68 | BC12: 23 | BE12: 53 | BI12: 36 | BU12: 380 | BY12: ООО "Издательство "Магариф-Вакыт"
A13: 8 | B13: 3.1.1.2.5.3 | C13: Сафиуллина Г.М., Хасанова Ф.Ф., Мухаметзянова А.Г. | D13: Литературное чтение(Эдэби уку), в 3 частях | E13: 3 | F13: Учебник | G13: 311 | H13: 263 | I13: 0 | L13: 126 | M13: 29 | N13: 28 | Z13: 13 | AO13: 14 | AR13: 20 | BC13: 23 | BE13: 58 | BU13: 311 | BY13: ООО "Издательство "Магариф-Вакыт"
A14: 9 | B14: 3.1.1.2.5.4 | C14: Сафиуллина Г.М., Хасанова Ф.Ф., Мухаметзянова А.Г. | D14: Литературное чтение (Эдэби уку), в 3 частях | E14: 4 | F14: Учебник | G14: 376 | H14: 70 | I14: 0 | L14: 125 | M14: 30 | Z14: 15 | AK14: 79 | BC14: 29 | BE14: 58 | BI14: 40 | BU14: 376 | BY14: ООО "Издательство "Магариф-Вакыт"
A15: 10 | B15: 3.1.1.1.1.1. | C15: Вагизов С.Г., Валитова Р.Г. | D15: Татарский язык (Татар теле) | E15: 1 | F15: Учебник | G15: 174 | H15: 30 | I15: 0 | M15: 20 | N15: 30 | V15: 25 | Z15: 22 | AC15: 24 | AD15: 17 | BI15: 36 | BU15: =SUM(K15:BT15) -> 174 | BY15: ГУП РТ "Татарское книжное издательство" | BZ15: Приказ МОиН РФ от 31.03.2014г. №253.
A16: 11 | B16: 3.1.1.1.1.2 | C16: Гарипова В.А., Шакирова Г.Р. | D16: Татарский язык (Татар теле), в двух частях | E16: 2 | F16: Учебник | G16: 154 | H16: 0 | I16: 0 | W16: 22 | Z16: 9 | BC16: 50 | BE16: 28 | BI16: 45 | BU16: 154 | BY16: ГУП РТ "Татарское книжное издательство"
A17: 12 | B17: 3.1.1.1.1.3 | C17: Харисова Ч.М., Шакирова Г.Р. | D17: Татарский язык (Татар теле), в двух частях | E17: 3 | F17: Учебник | G17: 289 | H17: 0 | I17: 0 | N17: 27 | T17: 50 | Z17: 14 | AH17: 31 | AO17: 21 | AT17: 55 | AX17: 15 | BP17: 76 | BU17: 289 | BY17: ГУП РТ "Татарское книжное издательство"
A18: 13 | B18: 3.1.1.1.1.4 | C18: Ягафарова Р.Х., Асылгараева Р.А. | D18: Татарский язык (Татар теле), в двух частях. | E18: 4 | F18: Учебник | G18: 145 | H18: 70 | I18: 0 | N18: 60 | Z18: 15 | BE18: 30 | BI18: 40 | BU18: 145 | BY18: ГУП РТ "Татарское книжное издательство"
A19: 14 | B19: 3.1.1.2.1.1 | C19: Вагизов С.Г., Валитова Р.Г. и др. | D19: Родная речь (Туган тел) | E19: 1 | F19: Учебник | G19: 328 | H19: 285 | I19: 0 | M19: 20 | N19: 30 | V19: 25 | W19: 20 | Z19: 22 | AC19: 24 | BI19: 24 | BU19: 165 | BY19: ГУП РТ "Татарское книжное издательство"
A20: 15 | B20: 3.1.1.2.1.2 | C20: Ягафарова Р.Х., Раскулова Р.И. | D20: Книга для чтения (Уку китабы), в двух частях | E20: 2 | F20: Учебник | G20: 100 | H20: 165 | I20: 65 | Z20: 11 | AG20: 21 | AO20: 17 | BC20: 28 | BE20: 23 | BU20: 100 | BY20: ГУП РТ "Татарское книжное издательство"
A21: 16 | B21: 3.1.1.2.1.3 | C21: Ягафарова Р.Х. | D21: Книга для чтения (Уку китабы), в двух частях | E21: 3 | F21: Учебник | G21: 137 | H21: 263 | I21: 246 | N21: 27 | BC21: 110 | BU21: 137 | BY21: ГУП РТ "Татарское книжное издательство"
A22: 17 | B22: 3.1.1.2.1.4 | C22: Ягафарова Р.Х. | D22: Литературное чтение (Уку китабы), в двух частях | E22: 4 | F22: Учебник | G22: 187 | H22: 70 | I22: 0 | N22: 60 | Z22: 15 | BC22: 82 | BE22: 30 | BU22: 187 | BY22: ГУП РТ "Татарское книжное издательство"
A23: 18 | B23: 3.2.1.1.4.1 | C23: Харисова Ч.М., Максимов Н.В., Сайфутдинов Р.Р. | D23: Татарский язык (Татар теле) | E23: 5 | F23: Учебник | G23: 179 | H23: 345 | I23: 166 | M23: 28 | Z23: 49 | BE23: 85 | BI23: 12 | BR23: 5 | BU23: 179 | BY23: ГУП РТ "Татарское книжное издательство" | BZ23: Приказ МОиН РФ от 21.04.2016г № 459
A24: 19 | B24: 3.2.1.1.4.2 | C24: Юсупов Ф.Ю., Харисова Ч.М., Сайфутдинов Р.Р. | D24: Татарский язык (Татар теле) | E24: 6 | F24: Учебник | G24: 558 | H24: 299 | I24: 0 | L24: 126 | M24: 31 | N24: 53 | Z24: 15 | AG24: 15 | AK24: 75 | BE24: 80 | BH24: 51 | BI24: 34 | BR24: 15 | BS24: 63 | BU24: 558 | BY24: ГУП РТ "Татарское книжное издательство"
A25: 20 | B25: 3.2.1.1.4.3 | C25: Максимов Н.В., Набиуллина Г.А. | D25: Татарский язык (Татар теле) | E25: 7 | F25: Учебник | G25: 435 | H25: 324 | I25: 0 | M25: 31 | N25: 53 | Z25: 15 | AG25: 15 | AK25: 75 | BE25: 80 | BH25: 51 | BI25: 37 | BR25: 15 | BS25: 63 | BU25: 435 | BY25: ГУП РТ "Татарское книжное издательство"
A26: 21 | B26: 3.2.1.1.4.4 | C26: Закиев М.З., Максимов Н.В. | D26: Татарский язык (Татар теле) | E26: 8 | F26: Учебник | G26: 165 | H26: 291 | I26: 0 | M26: 29 | AH26: 15 | BE26: 68 | BI26: 32 | BR26: 21 | BU26: 165 | BY26: ГУП РТ "Татарское книжное издательство"
A27: 22 | B27: 3.2.1.1.4.5 | C27: Закиев М.З., Ибрагимов С.М. | D27: Татарский язык (Татар теле) | E27: 9 | F27: Учебник | G27: 165 | H27: 288 | I27: 123 | M27: 29 | AH27: 15 | BE27: 68 | BI27: 32 | BR27: 21 | BU27: 165 | BY27: ГУП РТ "Татарское книжное издательство"
A28: 23 | B28: 3.2.1.2.4.1 | C28: Ганиева Ф.А., Сабирова Л.Г. | D28: Татарская литература (Эдэбият) | E28: 5 | F28: Учебник | G28: 583 | H28: 345 | I28: 0 | L28: 126 | M28: 31 | N28: 53 | Z28: 15 | AG28: 15 | AK28: 75 | AO28: 15 | BF28: 80 | BH28: 63 | BJ28: 32 | BR28: 15 | BS28: 63 | BU28: 583 | BY28: ГУП РТ "Татарское книжное издательство" | BZ28: Приказ МОиН РФ от 21.04.2016г № 459
A29: 24 | B29: 3.2.1.2.4.2 | C29: Ганиева Ф.А., Гарифуллина М.Д. | D29: Татарская литература (Эдэбият) | E29: 6 | F29: Учебник | BY29: ГУП РТ "Татарское книжное издательство"
A30: 25 | B30: 3.2.1.2.4.3 | C30: Абдуллина Д.М., Хисматова Л.К., Завгарова Ф.Х. | D30: Татарская литература (Эдэбият), в 2-х частях. | E30: 7 | F30: Учебник | G30: 576 | H30: 324 | I30: 0 | L30: 126 | M30: 31 | N30: 53 | Z30: 15 | AG30: 15 | AK30: 75 | AO30: 15 | BF30: 80 | BH30: 51 | BJ30: 37 | BR30: 15 | BS30: 63 | BU30: =SUM(K30:BT30) -> 576 | BY30: ГУП РТ "Татарское книжное издательство"
A31: 26 | B31: 3.2.1.2.4.4 | C31: Ганиева Ф.А., Рамазанова Ч.Р. | D31: Татарская литература (Эдэбият), в 2-х частях. | E31: 8 | F31: Учебник | G31: 511 | H31: 291 | I31: 0 | L31: 126 | M31: 29 | AH31: 15 | AL31: 42 | BC31: 110 | BE31: 68 | BI31: 32 | BR31: 21 | BS31: 68 | BU31: =SUM(K31:BT31) -> 511 | BY31: ГУП РТ "Татарское книжное издательство"
A32: 27 | B32: 3.1.1.2.4.5 | C32: Закирзянов А.М., Фахрутдинова Г.М. | D32: Татарская литература (Эдэбият) в 2-х частях. | E32: 9 | F32: Учебник | G32: 566 | H32: 288 | I32: 0 | L32: 130 | M32: 28 | N32: 63 | Z32: 15 | AK32: 110 | AX32: 1 | BC32: 85 | BE32: 86 | BI32: 18 | BR32: 30 | BU32: =SUM(K32:BT32) -> 566 | BY32: ГУП РТ "Татарское книжное издательство"
A33: Для общеобразовательных организаций с обучением на русском языке
A34: 28 | B34: 3.1.1.1.7.1 | C34: Хайдарова Р.З., Галиева Н.Г. | D34: Татарский язык | E34: 1 | F34: Учебник | G34: 3752 | H34: 5216 | I34: 1464 | K34: 73 | O34: 33 | P34: 96 | Q34: 60 | R34: 48 | S34: 80 | T34: 60 | U34: 105 | W34: 35+52 | X34: 106 | Y34: 50 | Z34: 35 | AA34: 145 | AB34: 61 | AC34: 74 | AD34: 92 | AE34: 47 | AF34: 40 | AG34: 87 | AH34: 117 | AI34: 50 | AJ34: 90 | AL34: 68 | AM34: 112 | AN34: 46 | AO34: 123 | AP34: 112 | AQ34: 31 | AR34: 88 | AS34: 88 | AT34: 103 | AU34: 36 | AV34: 73 | AW34: 112 | AX34: 120 | AY34: 34 | AZ34: 65 | BA34: 80 | BB34: 60 | BD34: 150 | BF34: 76 | BG34: 72 | BH34: 35 | BI34: 130 | BJ34: 120 | BK34: 26 | BL34: 44 | BO34: 52 | BU34: =SUM(K34:BT34) -> 3605 | BY34: ООО «Татармультфильм» | BZ34: Приказ МОиН РФ от 31.03.2014г. №253;
A35: 29 | B35: 3.1.1.1.7.2 | C35: Хайдарова Р.З., Галиева Н.Г., Ахметзянова Г.М. | D35: Татарский язык | E35: 2 | F35: Учебник | G35: 3904 | H35: 4709 | I35: 805 | K35: 85 | M35: 30 | O35: 58 | P35: 105 | Q35: 58 | R35: 60 | S35: 69 | T35: 85 | U35: 115 | V35: 29 | W35: 52 | X35: 120 | Y35: 53 | Z35: 36 | AA35: 122 | AB35: 55 | AC35: 70 | AD35: 103 | AE35: 50 | AF35: 49 | AG35: 87 | AH35: 95 | AI35: 69 | AJ35: 78 | AL35: 67 | AM35: 113 | AN35: 18 | AO35: 96 | AP35: 135 | AQ35: 18 | AR35: 90 | AS35: 128 | AT35: 100 | AU35: 50 | AV35: 54 | AW35: 90 | AX35: 101 | AY35: 40 | AZ35: 90 | BA35: 75 | BB35: 46 | BD35: 140 | BF35: 63 | BG35: 110 | BH35: 17 | BI35: 189 | BJ35: 105 | BK35: 30 | BL35: 50 | BN35: 78 | BO35: 62 | BP35: 52 | BU35: 3940 | BY35: ООО «Татармультфильм»
A36: 30 | B36: 3.1.1.1.7.3 | C36: Хайдарова Р. З., Ахметзянова Г.М., Гиниятуллина Л.А. | D36: Татарский язык , в 2-х частях | E36: 3 | F36: Учебник | G36: 4149 | H36: 4393 | I36: 244 | K36: 85 | M36: 26 | O36: 40 | P36: 117 | Q36: 57 | R36: 52 | S36: 90 | T36: 85 | U36: 115 | V36: 29 | W36: 52 | X36: 134 | Y36: 52 | Z36: 36 | AA36: 122 | AB36: 57 | AC36: 77 | AD36: 103 | AE36: 63 | AF36: 50 | AG36: 90 | AH36: 95 | AI36: 60 | AJ36: 106 | AL36: 55 | AM36: 113 | AN36: 58 | AO36: 96 | AP36: 130 | AQ36: 59 | AR36: 90 | AS36: 130 | AT36: 105 | AU36: 50 | AV36: 63 | AW36: 90 | AX36: 101 | AY36: 46 | AZ36: 60 | BA36: 75 | BB36: 64 | BD36: 160 | BF36: 63 | BG36: 100 | BH36: 17 | BI36: 176 | BJ36: 133 | BK36: 30 | BL36: 50 | BN36: 78 | BO36: 68 | BU36: 4053 | BY36: ООО «Татармультфильм»
A37: 31 | B37: 3.1.1.1.7.1 | C37: Хайдарова Р. З., Ахметзянова Г.М., Гиниятуллина Л.А. | D37: Татарский язык , в 2-х частях | E37: 4 | F37: Учебник | G37: 4402 | H37: 3934 | I37: 0 | K37: 90 | M37: 32 | O37: 62 | P37: 118 | Q37: 60 | R37: 54 | S37: 96 | T37: 100 | U37: 115 | V37: 41 | W37: 52 | X37: 120 | Y37: 56 | Z37: 36 | AA37: 125 | AB37: 63 | AC37: 82 | AD37: 104 | AE37: 65 | AF37: 65 | AG37: 138 | AH37: 100 | AI37: 70 | AJ37: 100 | AL37: 64 | AM37: 110 | AN37: 71 | AO37: 109 | AP37: 130 | AQ37: 64 | AR37: 90 | AS37: 100 | AT37: 100 | AU37: 60 | AV37: 65 | AW37: 110 | AX37: 140 | AY37: 49 | AZ37: 90 | BA37: 70 | BB37: 76 | BD37: 155 | BF37: 76 | BG37: 80 | BH37: 17 | BI37: 155 | BJ37: 130 | BK37: 30 | BL37: 54 | BO37: 53 | BU37: 4192 | BY37: ООО «Татармультфильм»
A38: 32 | B38: 3.2.1.1.2.1 | C38: Хайдарова Р. З., Ахметзянова Г.М. | D38: Татарский язык | E38: 5 | F38: Учебник | G38: 3949 | H38: 3744 | I38: 0 | K38: 87 | M38: 32 | O38: 40 | P38: 84 | Q38: 70 | R38: 65 | S38: 90 | T38: 153 | U38: 88 | V38: 53 | W38: 45 | X38: 81 | Y38: 58 | Z38: 78 | AA38: 125 | AB38: 58 | AC38: 82 | AD38: 96 | AE38: 10 | AF38: 55 | AG38: 105 | AH38: 110 | AJ38: 110 | AL38: 54 | AN38: 71 | AO38: 118 | AP38: 82 | AQ38: 25 | AR38: 80 | AS38: 110 | AT38: 105 | AU38: 50 | AV38: 81 | AW38: 117 | AX38: 73 | AZ38: 65 | BA38: 75 | BB38: 30 | BD38: 165 | BF38: 70 | BG38: 55 | BH38: 5 | BI38: 130 | BJ38: 130 | BK38: 7 | BO38: 83 | BQ38: 100 | BR38: 15 | BU38: =SUM(K38:BT38) -> 3671 | BY38: ООО"Татармультфильм" | BZ38: Приказ МОиН РФ от 8.06.2015г. №576
A39: 33 | B39: 3.2.1.1.2.2 | C39: Хайдарова Р. З., Назипова З.Р. | D39: Татарский язык | E39: 6 | F39: Учебник | G39: 3949 | H39: 3757 | I39: 0 | K39: 87 | M39: 32 | O39: 40 | P39: 84 | Q39: 70 | R39: 65 | S39: 90 | T39: 153 | U39: 88 | V39: 53 | W39: 45 | X39: 81 | Y39: 58 | Z39: 78 | AA39: 125 | AB39: 58 | AC39: 82 | AD39: 96 | AE39: 10 | AF39: 55 | AG39: 105 | AH39: 110 | AJ39: 110 | AL39: 54 | AN39: 71 | AO39: 118 | AP39: 82 | AQ39: 25 | AR39: 80 | AS39: 110 | AT39: 105 | AU39: 50 | AV39: 81 | AW39: 117 | AX39: 73 | AZ39: 65 | BA39: 75 | BB39: 30 | BD39: 165 | BF39: 70 | BG39: 55 | BH39: 5 | BI39: 130 | BJ39: 130 | BK39: 7 | BO39: 83 | BQ39: 100 | BR39: 15 | BU39: =SUM(K39:BT39) -> 3671 | BY39: ООО "Татармультфильм"
A40: 34 | B40: 3.2.1.1.2.3 | C40: Хайдарова Р. З., Малафеева Р.Л. | D40: Татарский язык | E40: 7 | F40: Учебник | G40: 3936 | H40: 3753 | I40: 0 | K40: 87 | M40: 32 | O40: 40 | P40: 84 | Q40: 70 | R40: 65 | S40: 90 | T40: 153 | U40: 88 | V40: 53 | W40: 53 | X40: 93 | Y40: 51 | Z40: 78 | AA40: 125 | AB40: 64 | AC40: 82 | AD40: 96 | AE40: 20 | AF40: 55 | AG40: 105 | AH40: 110 | AJ40: 110 | AL40: 54 | AN40: 71 | AO40: 118 | AP40: 66 | AQ40: 20 | AR40: 80 | AS40: 110 | AT40: 105 | AU40: 50 | AV40: 81 | AW40: 117 | AX40: 73 | AZ40: 65 | BA40: 75 | BB40: 30 | BD40: 165 | BF40: 35 | BG40: 55 | BH40: 5 | BI40: 130 | BJ40: 130 | BK40: 25 | BO40: 83 | BQ40: 100 | BR40: 15 | BU40: =SUM(K40:BT40) -> 3662 | BY40: ООО "Татармультфильм"
A41: 35 | B41: 3.2.1.1.2.4 | C41: Хайдарова Р. З., Малафеева Р.Л. | D41: Татарский язык | E41: 8 | F41: Учебник | G41: 4199 | H41: 3667 | I41: 0 | K41: 90 | M41: 32 | O41: 45 | P41: 114 | Q41: 70 | R41: 67 | S41: 98 | T41: 100 | U41: 88 | V41: 50 | W41: 50 | X41: 24 | Y41: 116 | Z41: 53 | AA41: 31 | AB41: 145 | AC41: 70 | AD41: 80 | AE41: 96 | AF41: 75 | AG41: 57 | AH41: 105 | AI41: 120 | AJ41: 70 | AK41: 110 | AM41: 75 | AN41: 57 | AO41: 58 | AP41: 118 | AQ41: 109 | AR41: 30 | AS41: 90 | AT41: 91 | AV41: 65 | AW41: 81 | AX41: 117 | AY41: 80 | AZ41: 42 | BA41: 72 | BB41: 90 | BC41: 90 | BE41: 165 | BF41: 0 | BG41: 85 | BH41: 100 | BI41: 51 | BJ41: 130 | BK41: 130 | BM41: 30 | BN41: 9 | BP41: 73 | BQ41: 100 | BR41: 15 | BU41: =SUM(K41:BT41) -> 4109 | BY41: ООО "Татармультфильм"
A42: 36 | B42: 3.2.1.1.2.5 | C42: Хайдарова Р. З. и др. | D42: Татарский язык | E42: 9 | F42: Учебник | G42: 4637 | H42: 3318 | I42: 0 | K42: 90 | M42: 32 | O42: 61 | P42: 121 | Q42: 70 | R42: 65 | S42: 97 | T42: 160 | U42: 126 | V42: 50 | W42: 42 | X42: 115 | Y42: 49 | Z42: 80 | AA42: 126 | AB42: 66 | AC42: 85 | AD42: 115 | AE42: 75 | AF42: 65 | AG42: 116 | AH42: 120 | AI42: 75 | AJ42: 106 | AL42: 90 | AN42: 63 | AO42: 120 | AP42: 120 | AQ42: 40 | AR42: 100 | AS42: 100 | AT42: 125 | AU42: 72 | AV42: 81 | AW42: 117 | AX42: 91 | AY42: 47 | AZ42: 95 | BA42: 90 | BB42: 92 | BD42: 165 | BF42: 100 | BG42: 100 | BH42: 50 | BI42: 155 | BJ42: 130 | BK42: 30 | BM42: 25 | BN42: 104 | BO42: 78 | BQ42: 130 | BR42: 20 | BU42: =SUM(K42:BT42) -> 4637 | BY42: ООО "Татармультфильм"
A43: 37 | B43: 3.1.1.2.2.1 | C43: Гарифуллина Ф.Ш., Мияссарова И.Х. | D43: Литературное чтение (Эдэби уку) | E43: 1 | F43: Учебник | G43: 718 | H43: 2408 | I43: 1690 | K43: 23 | M43: 17 | N43: 50 | R43: 17 | U43: 53 | V43: 36 | W43: 18 | X43: 21 | Y43: 21 | AC43: 28 | AF43: 11 | AI43: 11 | AL43: 29 | AM43: 18 | AR43: 31 | AS43: 50 | AT43: 25 | AW43: 21 | BB43: 11 | BH43: 22 | BK43: 9 | BL43: 30 | BP43: 20 | BU43: =SUM(K43:BT43) -> 572 | BY43: ООО "Издательство "Магариф-Вакыт" | BZ43: Приказ МОиН РТ от 31.03.2014г. №253
A44: 38 | B44: 3.1.1.2.2.2 | C44: Гарифуллина Ф.Ш., Мияссарова И.Х. | D44: Литературное чтение (Эдэби уку), в 2 частях | E44: 2 | F44: Учебник | G44: 1292 | H44: 1157 | I44: 0 | K44: 25 | M44: 39 | N44: 48 | O44: 59 | R44: 25 | T44: 50 | U44: 7 | V44: 62 | Y44: 24 | Z44: 16 | AA44: 44 | AB44: 20 | AC44: 45 | AD44: 22 | AE44: 35 | AF44: 20 | AH44: 31 | AI44: 22 | AL44: 28 | AO44: 28 | AR44: 29 | AS44: 45 | AT44: 46 | AU44: 34 | AW44: 40 | AX44: 148 | AY44: 20 | AZ44: 28 | BF44: 12 | BI44: 61 | BK44: 12 | BL44: 12 | BN44: 15 | BP44: 39 | BU44: 1191 | BY44: ООО "Издательство "Магариф-Вакыт"
A45: 39 | B45: 3.1.1.2.2.3 | C45: Гарифуллина Ф.Ш., Мияссарова И.Х. | D45: Литературное чтение (Эдэби уку), в 2 частях | E45: 3 | F45: Учебник | G45: 1409 | H45: 970 | I45: 0 | K45: 25 | M45: 30 | N45: 48 | R45: 25 | S45: 30 | T45: 50 | U45: 16 | V45: 64 | Y45: 25 | Z45: 16 | AA45: 45 | AB45: 20 | AC45: 45 | AD45: 20 | AF45: 20 | AH45: 31 | AI45: 19 | AL45: 25 | AM45: 26 | AO45: 21 | AP45: 39 | AR45: 34 | AS45: 34 | AT45: 55 | AU45: 38 | AX45: 15 | AZ45: 28 | BH45: 17 | BK45: 7 | BL45: 12 | BN45: 15 | BP45: 68 | BU45: 963 | BY45: ООО "Издательство "Магариф-Вакыт"
A46: 40 | B46: 3.1.1.2.2.4 | C46: Гарифуллина Ф.Ш., Мияссарова И.Х. | D46: Литературное чтение (Эдэби уку), в 2 частях | E46: 4 | F46: Учебник | G46: 1288 | H46: 752 | I46: 0 | K46: 30 | M46: 30 | N46: 65 | R46: 19 | S46: 35 | T46: 53 | U46: 30 | V46: 43 | Y46: 21 | Z46: 42 | AA46: 42 | AB46: 25 | AE46: 45 | AF46: 25 | AH46: 30 | AI46: 21 | AM46: 27 | AO46: 43 | AP46: 45 | AR46: 27 | AT46: 50 | AU46: 35 | AW46: 52 | AX46: 15 | AY46: 24 | AZ46: 21 | BG46: 60 | BI46: 25 | BL46: 30 | BQ46: 20 | BU46: 1030 | BY46: ООО "Издательство "Магариф-Вакыт"
A47: 41 | B47: 3.2.1.2.2.1 | C47: Хасанова Ф.Ф., Сафиуллина Г.М., Гарифуллина М.Я. | D47: Татарская литература (Эдэбият) | E47: 5 | F47: Учебник | G47: 1260 | H47: 491 | I47: 0 | K47: 25 | M47: 31 | Q47: 27 | R47: 28 | S47: 38 | V47: 52 | W47: 30 | X47: 33 | Y47: 26 | Z47: 42 | AA47: 42 | AB47: 24 | AF47: 25 | AG47: 21 | AH47: 16 | AI47: 15 | AJ47: 20 | AL47: 26 | AM47: 28 | AO47: 42 | AQ47: 5 | AR47: 35 | AS47: 60 | AT47: 50 | AU47: 30 | AV47: 39 | AW47: 37 | AX47: 47 | AY47: 35 | AZ47: 24 | BB47: 50 | BJ47: 66 | BK47: 60 | BM47: 12 | BQ47: 64 | BR47: 15 | BU47: 1260 | BY47: Издательство "Магариф-Вакыт" | BZ47: Приказ МОиН РТ от 9.06.2015г. №576
A48: 42 | B48: 3.2.1.2.2.1 | C48: Хасанова Ф.Ф., Сафиуллина Г.М., Гарифуллина М.Я. | D48: Татарская литература (Эдэбият) | E48: 6 | F48: Учебник | G48: 1165 | H48: 537 | I48: 0 | K48: 25 | M48: 31 | Q48: 27 | R48: 28 | S48: 38 | V48: 52 | W48: 30 | X48: 25 | Y48: 17 | Z48: 42 | AA48: 42 | AB48: 24 | AF48: 25 | AG48: 21 | AH48: 16 | AI48: 15 | AJ48: 20 | AL48: 26 | AM48: 28 | AO48: 42 | AQ48: 7 | AR48: 35 | AS48: 60 | AT48: 50 | AU48: 30 | AV48: 39 | AW48: 37 | AX48: 47 | AY48: 35 | AZ48: 24 | BB48: 50 | BJ48: 58 | BN48: 15 | BQ48: 64 | BR48: 15 | BU48: =SUM(K48:BT48) -> 1140 | BY48: Издательство "Магариф-Вакыт"
A49: 43 | B49: 3.2.1.2.2.2 | C49: Хасанова Ф.Ф., Сафиуллина Г.М., Гарифуллина М.Я., Сафиуллина А.Н. | D49: Татарская литература (Эдэбият) | E49: 7 | F49: Учебник | G49: 1136 | H49: 517 | I49: 0 | K49: 25 | M49: 31 | Q49: 27 | R49: 28 | S49: 38 | V49: 52 | W49: 30 | X49: 25 | Y49: 17 | Z49: 42 | AA49: 42 | AB49: 24 | AF49: 25 | AG49: 21 | AH49: 16 | AI49: 15 | AJ49: 20 | AL49: 26 | AM49: 28 | AO49: 42 | AQ49: 10 | AR49: 35 | AS49: 60 | AT49: 50 | AU49: 30 | AV49: 39 | AW49: 37 | AX49: 47 | AY49: 35 | AZ49: 24 | BB49: 50 | BJ49: 51 | BN49: 15 | BQ49: 64 | BR49: 15 | BU49: 1136 | BY49: Издательство "Магариф-Вакыт"
A50: 44 | B50: 3.2.1.2.2.3 | C50: Хасанова Ф.Ф., Сафиуллина Г.М., Гарифуллина М.Я., Сафиуллина А.Н. | D50: Татарская литература (Эдэбият) | E50: 8 | F50: Учебник | G50: 480 | H50: 332 | I50: 0 | K50: 25 | R50: 28 | S50: 38 | Y50: 30 | Z50: 15 | AB50: 45 | AH50: 20 | AJ50: 15 | AK50: 15 | AN50: 29 | AQ50: 45 | AR50: 9 | AV50: 35 | AY50: 17 | BE50: 45 | BF50: 0 | BJ50: 54 | BM50: 15 | BR50: 0 | BU50: 480 | BY50: Издательство "Магариф-Вакыт"
A51: 45 | B51: 3.2.1.2.2.4 | C51: Хасанова Ф.Ф., Сафиуллина Г.М., Гарифуллина М.Я., | D51: Татарская литература (Эдэбият) | E51: 9 | F51: Учебник | G51: 1099 | H51: 287 | I51: 0 | K51: 25 | M51: 29 | N51: 28 | O51: 22 | Q51: 25 | R51: 25 | S51: 38 | V51: 73 | W51: 16 | X51: 26 | Y51: 20 | Z51: 27 | AA51: 45 | AB51: 30 | AE51: 25 | AH51: 32 | AI51: 25 | AJ51: 15 | AL51: 30 | AM51: 35 | AN51: 30 | AQ51: 12 | AT51: 50 | AV51: 39 | AW51: 49 | AX51: 54 | AY51: 24 | AZ51: 30 | BB51: 15 | BD51: 40 | BF51: 17 | BH51: 17 | BI51: 51 | BK51: 20 | BR51: 30 | BU51: 1069 | BY51: Издательство "Магариф-Вакыт"
A52: 46 | B52: 3.2.1.2.3.1 | C52: Мотигуллина А.Р., Ханнанов Р.Г., Хисматова Л.К. | D52: Әдәбият.ФГОС | E52: 5 | F52: Учебник | G52: 3228 | H52: 3744 | I52: 516 | K52: 63 | M52: 20 | N52: 3 | O52: 28 | P52: 61 | Q52: 52 | R52: 48 | S52: 67 | T52: 114 | U52: 65 | V52: 38 | W52: 32 | X52: 60 | Y52: 43 | Z52: 57 | AA52: 95 | AB52: 44 | AC52: 62 | AD52: 71 | AE52: 75 | AF52: 42 | AG52: 79 | AH52: 82 | AI52: 57 | AJ52: 83 | AL52: 60 | AM52: 94 | AN52: 53 | AO52: 88 | AP52: 60 | AQ52: 15 | AR52: 60 | AS52: 82 | AT52: 78 | AU52: 36 | AV52: 60 | AW52: 88 | AX52: 55 | AY52: 20 | AZ52: 47 | BA52: 55 | BB52: 40 | BD52: 103 | BF52: 51 | BG52: 40 | BH52: 4 | BI52: 90 | BJ52: 99 | BK52: 5 | BN52: 74 | BO52: 61 | BQ52: 74 | BR52: 11 | BU52: =SUM(K52:BT52) -> 3044 | BY52: Издательство "Магариф-Вакыт" | BZ52: Приказ МОиН РФ от 8.06.2015г. №576
A53: 47 | B53: 3.2.1.2.3.2 | C53: Мотигуллина А.Р., Ханнанов Р.Г., Гизатуллина Э.Х. | D53: Татарская литература (Эдэбият) | E53: 6 | F53: Учебник | G53: 3031 | H53: 3757 | I53: 726 | K53: 60 | M53: 20 | N53: 3 | O53: 26 | P53: 57 | Q53: 48 | R53: 46 | S53: 62 | T53: 106 | U53: 60 | V53: 37 | W53: 30 | X53: 56 | Y53: 40 | Z53: 57 | AA53: 88 | AB53: 41 | AC53: 59 | AD53: 66 | AE53: 70 | AF53: 39 | AG53: 75 | AH53: 76 | AI53: 53 | AJ53: 77 | AL53: 56 | AM53: 87 | AN53: 49 | AO53: 82 | AP53: 56 | AQ53: 14 | AR53: 56 | AS53: 76 | AT53: 72 | AU53: 33 | AV53: 56 | AW53: 82 | AX53: 53 | AY53: 18 | AZ53: 44 | BA53: 51 | BB53: 30 | BD53: 102 | BF53: 47 | BG53: 37 | BH53: 4 | BI53: 86 | BJ53: 92 | BK53: 5 | BN53: 69 | BO53: 57 | BQ53: 69 | BR53: 12 | BU53: 2847 | BY53: Издательство "Магариф-Вакыт"
A54: 48 | B54: 3.2.1.2.3.3 | C54: Мотигуллина А.Р., Ханнанов Р.Г., Мулласалихова Г.Г. | D54: Татарская литература (Эдэбият) | E54: 7 | F54: Учебник | G54: 3070 | H54: 3753 | I54: 683 | K54: 61 | M54: 23 | N54: 3 | O54: 26 | P54: 57 | Q54: 50 | R54: 46 | S54: 62 | T54: 106 | U54: 60 | V54: 39 | W54: 32 | X54: 56 | Y54: 40 | Z54: 59 | AA54: 88 | AB54: 41 | AC54: 61 | AD54: 66 | AE54: 70 | AF54: 39 | AG54: 77 | AH54: 76 | AI54: 53 | AJ54: 77 | AL54: 56 | AM54: 87 | AN54: 51 | AO54: 82 | AP54: 57 | AQ54: 14 | AR54: 56 | AS54: 76 | AT54: 72 | AU54: 33 | AV54: 56 | AW54: 82 | AX54: 55 | AY54: 18 | AZ54: 44 | BA54: 53 | BB54: 30 | BD54: 102 | BF54: 49 | BG54: 39 | BH54: 4 | BI54: 88 | BJ54: 92 | BK54: 5 | BN54: 69 | BO54: 57 | BQ54: 69 | BR54: 12 | BU54: 2876 | BY54: Издательство "Магариф-Вакыт"
A55: 49 | B55: 3.2.1.2.3.4 | C55: Мотигуллина А.Р., Ханнанов Р.Г., Валиуллина Р.Х. | D55: Татарская литература (Эдэбият) | E55: 8 | F55: Учебник | G55: 3586 | H55: 3667 | I55: 81 | K55: 90 | M55: 32 | O55: 25 | P55: 114 | Q55: 70 | R55: 67 | S55: 98 | T55: 100 | U55: 60 | V55: 50 | W55: 50 | X55: 30 | Y55: 53 | AA55: 145 | AB55: 70 | AC55: 70 | AD55: 15 | AE55: 75 | AF55: 57 | AG55: 105 | AH55: 120 | AI55: 70 | AJ55: 110 | AL55: 25 | AN55: 19 | AO55: 118 | AP55: 86 | AQ55: 30 | AR55: 90 | AS55: 91 | AT55: 96 | AU55: 65 | AV55: 81 | AW55: 25 | AX55: 102 | AY55: 42 | AZ55: 72 | BB55: 90 | BD55: 40 | BE55: 0 | BF55: 85 | BG55: 100 | BI55: 140 | BJ55: 130 | BK55: 30 | BN55: 100 | BO55: 84 | BQ55: 100 | BR55: 15 | BU55: 3532 | BY55: Издательство "Магариф-Вакыт"
A56: 50 | B56: 3.2.1.2.3.5 | C56: Мотигуллина А.Р., Ханнанов Р.Г., Хуснуллина Х.Х. | D56: Татарская литература (Эдэбият) | E56: 9 | F56: Учебник | G56: 4249 | H56: 3318 | I56: 0 | K56: 90 | M56: 32 | O56: 61 | P56: 121 | Q56: 70 | R56: 65 | S56: 97 | T56: 160 | U56: 126 | V56: 50 | W56: 42 | X56: 115 | Y56: 49 | Z56: 40 | AA56: 126 | AB56: 66 | AC56: 85 | AE56: 75 | AF56: 65 | AG56: 116 | AH56: 120 | AI56: 75 | AJ56: 110 | AL56: 90 | AM56: 150 | AN56: 63 | AO56: 120 | AP56: 120 | AQ56: 26 | AR56: 44 | AS56: 100 | AT56: 125 | AU56: 72 | AV56: 81 | AW56: 82 | AX56: 91 | AY56: 47 | AZ56: 95 | BA56: 50 | BB56: 75 | BD56: 40 | BF56: 100 | BG56: 100 | BI56: 155 | BJ56: 130 | BK56: 30 | BN56: 104 | BO56: 78 | BQ56: 100 | BR56: 25 | BU56: 4249 | BY56: Издательство "Магариф-Вакыт"
A57: 51 | B57: 3.1.1.1.6.1 | C57: Харисов Ф.Ф., Харисова Ч.М. | D57: Татарский язык (Татар теле) | E57: 1 | F57: Учебник | G57: 677 | H57: 230 | I57: 0 | N57: 12 | O57: 55 | Q57: 15 | S57: 43 | W57: 27 | X57: 32 | Z57: 20 | AA57: 43 | AB57: 34 | AC57: 42 | AE57: 16 | AG57: 26 | AJ57: 15 | AO57: 49 | AU57: 34 | AV57: 38 | AX57: 35 | AY57: 18 | BF57: 15 | BH57: 32 | BI57: 28 | BJ57: 32 | BO57: 16 | BU57: 677 | BY57: ГУП РТ "Татарское книжное издательство" | BZ57: Приказ МОиН РТ от 31.03.2014г. №253
A58: 52 | B58: 3.1.1.1.6.2 | C58: Харисов Ф.Ф., Харисова Ч.М., Залялиева А.К. | D58: Татарский язык (Татар теле) | E58: 2 | F58: Учебник | G58: 1014 | H58: 992 | I58: 0 | N58: 49 | Q58: 26 | S58: 42 | T58: 54 | W58: 42 | X58: 42 | Z58: 36 | AA58: 54 | AB58: 50 | AC58: 54 | AE58: 33 | AI58: 22 | AJ58: 11 | AN58: 50 | AO58: 40 | AP58: 54 | AV58: 42 | AX58: 67 | AZ58: 28 | BF58: 34 | BH58: 42 | BI58: 62 | BJ58: 54 | BO58: 26 | BU58: 1014 | BY58: ГУП РТ "Татарское книжное издательство"
A59: 53 | B59: 3.1.1.1.6.3 | C59: Харисов Ф.Ф., Хисамова Ф.М., Харисова Ч.М. | D59: Татарский язык (Татар теле) | E59: 3 | F59: Учебник | G59: 918 | H59: 927 | I59: 9 | N59: 53 | O59: 24 | P59: 27 | Q59: 30 | R59: 25 | S59: 44 | U59: 30 | V59: 29 | W59: 31 | X59: 26 | AA59: 44 | AB59: 21 | AC59: 42 | AE59: 29 | AG59: 21 | AH59: 50 | AI59: 19 | AJ59: 15 | AN59: 23 | AO59: 21 | AP59: 39 | AV59: 39 | AZ59: 28 | BF59: 17 | BG59: 33 | BH59: 56 | BJ59: 30 | BK59: 8 | BO59: 22 | BP59: 42 | BU59: 918 | BY59: ГУП РТ "Татарское книжное издательство"
A60: 54 | B60: 3.1.1.1.6.4 | C60: Харисов Ф.Ф., Харисова Ч.М. | D60: Татарский язык (Татар теле) | E60: 4 | F60: Учебник | G60: 1167 | H60: 638 | I60: 0 | N60: 77 | P60: 27 | Q60: 25 | W60: 33 | Z60: 42 | AA60: 43 | AB60: 35 | AC60: 40 | AG60: 26 | AJ60: 13 | AN60: 34 | AO60: 43 | AQ60: 5 | AT60: 50 | AZ60: 21 | BB60: 15 | BH60: 30 | BI60: 40 | BK60: 14 | BL60: 30 | BU60: 643 | BY60: ГУП РТ "Татарское книжное издательство"
A62: II. Перечень региональных учебных пособий
A63: Для общеобразовательных организаций с обучением на татарском языке
A64: 1 | C64: Закиев М.З., Максимов Н.В. | D64: Татарский язык (Татар теле) | E64: 10-11 | F64: Учебное пособие | G64: 389 | H64: 135 | I64: 0 | L64: 100 | N64: 63 | Z64: 15 | AX64: 1 | BE64: 54 | BI64: 26 | BS64: 130 | BU64: =SUM(K64:BT64) -> 389 | BY64: ГУП РТ "Татарское книжное издательство" | BZ64: Приказ МОиН РФ от 9.06.2016г. №699
A65: 2 | C65: Ганиева Ф.А., Рамазанова Ч.Р., Абдуллина Д.М. | D65: Татарская литература (Әдәбият) | E65: 10 | F65: Учебное пособие | G65: 243 | H65: 135 | I65: 0 | L65: 60 | N65: 31 | Z65: 15 | AX65: 1 | BE65: 27 | BI65: 16 | BR65: 30 | BS65: 63 | BU65: =SUM(K65:BT65) -> 243 | BY65: ГУП РТ "Татарское книжное издательство"
A66: 3 | C66: Ганиева Ф.А., Рамазанова Ч.Р., Абдуллина Д.М. | D66: Татарская литература (Әдәбият) | E66: 11 | F66: Учебное пособие | G66: 15 | H66: 135 | I66: 0 | V66: 15 | BU66: =SUM(K66:BT66) -> 15 | BY66: ГУП РТ "Татарское книжное издательство"
A67: Для общеобразовательных организаций с обучением на русском языке
A68: 4 | C68: Бахтиев Р.Ф., Маркова Э.М. и др. | D68: Татарский язык "Сэлам" | E68: 1 | F68: Учебное пособие | BY68: ООО"Магариф-Вакыт" | BZ68: Приказ МОиН РФ от 9.06.2016г. №699
A69: 5 | C69: Хайдарова Р. З., Малафеева Р.Л. | D69: Татарский язык (Татар теле) | E69: 10 | F69: Учебное пособие | H69: 1568 | I69: 0 | BY69: "Мәгариф"
A70: 6 | C70: Хайдарова Р. З., Малафеева Р.Л. | D70: Татарский язык (Татар теле) | E70: 11 | F70: Учебное пособие | H70: 1109 | I70: 0 | BY70: "Мәгариф"
A71: 7 | C71: Харисова Ч.М., Харисов Ф.Ф. | D71: Татарский язык (Татар теле) | E71: 5 | F71: Учебное пособие | G71: 1660 | H71: 646 | I71: 0 | M71: 29 | N71: 50 | O71: 25 | P71: 27 | Q71: 27 | R71: 28 | T71: 60 | U71: 20 | V71: 71 | W71: 25 | Y71: 30 | AA71: 63 | AB71: 45 | AC71: 28 | AD71: 40 | AE71: 15 | AF71: 40 | AG71: 25 | AH71: 20 | AI71: 32 | AK71: 15 | AM71: 20 | AN71: 38 | AP71: 45 | AR71: 5 | AS71: 35 | AT71: 70 | AU71: 42 | AV71: 0 | AW71: 39 | AX71: 43 | AY71: 55 | AZ71: 24 | BA71: 35 | BB71: 75 | BC71: 15 | BF71: 0 | BG71: 42 | BH71: 95 | BI71: 18 | BJ71: 54 | BK71: 74 | BL71: 15 | BO71: 12 | BP71: 25 | BQ71: 64 | BR71: 5 | BU71: =SUM(K71:BT71) -> 1660 | BY71: ГУП РТ "Татарское книжное издательство"
A72: 8 | C72: Максимов Н.В., Хамидуллина М.З. | D72: Татарский язык (Татар теле) | E72: 6 | F72: Учебное пособие | G72: 1565 | H72: 740 | I72: 0 | M72: 29 | N72: 50 | P72: 27 | Q72: 27 | R72: 28 | T72: 60 | U72: 20 | V72: 71 | W72: 25 | Y72: 30 | AA72: 49 | AB72: 45 | AC72: 28 | AD72: 50 | AE72: 15 | AF72: 20 | AG72: 25 | AH72: 20 | AI72: 32 | AK72: 15 | AM72: 20 | AN72: 29 | AP72: 45 | AR72: 7 | AS72: 35 | AT72: 60 | AU72: 42 | AV72: 0 | AW72: 39 | AX72: 43 | AY72: 55 | AZ72: 24 | BA72: 35 | BB72: 75 | BC72: 15 | BF72: 0 | BG72: 17 | BH72: 95 | BI72: 18 | BJ72: 40 | BK72: 74 | BL72: 15 | BO72: 12 | BP72: 25 | BQ72: 64 | BR72: 15 | BU72: 1565 | BY72: ГУП РТ "Татарское книжное издательство"
A73: 9 | C73: Айдарова С.Х., Гарипова В.А., Набиуллина Т.Г. | D73: Татарский язык (Татар теле) | E73: 7 | F73: Учебное пособие | G73: 1475 | H73: 748 | I73: 0 | M73: 29 | N73: 75 | P73: 27 | Q73: 27 | R73: 28 | T73: 60 | U73: 20 | V73: 71 | W73: 25 | AA73: 49 | AB73: 45 | AC73: 28 | AD73: 50 | AE73: 15 | AF73: 20 | AG73: 25 | AH73: 20 | AI73: 32 | AK73: 15 | AN73: 29 | AP73: 45 | AR73: 16 | AS73: 35 | AT73: 60 | AU73: 42 | AV73: 0 | AW73: 39 | AX73: 43 | AY73: 55 | AZ73: 24 | BA73: 35 | BB73: 75 | BC73: 15 | BF73: 0 | BG73: 17 | BH73: 35 | BI73: 18 | BJ73: 40 | BK73: 50 | BL73: 15 | BO73: 12 | BP73: 25 | BQ73: 64 | BR73: 15 | BU73: 1465 | BY73: ГУП РТ "Татарское книжное издательство"
A74: 10 | C74: Гайнуллина Г.Ф., Зиннуров М.К., Харисова Г.Ф., Хуснутдинов Д.Х. | D74: Татарский язык (Татар теле) | E74: 8 | F74: Учебное пособие | G74: 1009 | H74: 814 | I74: 0 | M74: 29 | N74: 50 | P74: 27 | Q74: 27 | T74: 60 | U74: 20 | V74: 71 | W74: 16 | AA74: 49 | AC74: 28 | AD74: 40 | AE74: 15 | AF74: 40 | AG74: 25 | AP74: 45 | AS74: 35 | AT74: 70 | AV74: 0 | AW74: 39 | AY74: 56 | AZ74: 24 | BA74: 35 | BB74: 75 | BC74: 15 | BF74: 0 | BG74: 42 | BH74: 95 | BI74: 18 | BJ74: 40 | BK74: 74 | BO74: 12 | BP74: 25 | BQ74: 64 | BR74: 5 | BU74: 1266 | BY74: ГУП РТ "Татарское книжное издательство"
A75: 11 | C75: Зиннатуллина К.З., Фатыхова Ф.Ф., Мирзагитов | D75: Татарский язык (Татар теле) | E75: 9 | F75: Учебное пособие | G75: 1518 | H75: 674 | I75: 0 | K75: 28 | N75: 68 | P75: 14 | Q75: 9 | S75: 42 | U75: 27 | V75: 40 | W75: 10 | X75: 46 | Y75: 10 | Z75: 19 | AA75: 57 | AC75: 21 | AF75: 28 | AG75: 18 | AH75: 56 | AJ75: 14 | AL75: 36 | AM75: 33 | AN75: 258 | AO75: 25 | AP75: 35 | AR75: 21 | AS75: 26 | AT75: 18 | AU75: 23 | AV75: 27 | AW75: 36 | AX75: 33 | AY75: 19 | BA75: 46 | BB75: 15 | BD75: 30 | BE75: 44 | BF75: 21 | BH75: 18 | BI75: 30 | BJ75: 37 | BK75: 10 | BN75: 16 | BO75: 89 | BQ75: 49 | BR75: 16 | BU75: 1518 | BV75: 15 | BW75: 8 | BX75: 8 | BY75: ГУП РТ "Татарское книжное издательство"
A76: 12 | C76: Абдуллина Р.С., Шайхиева Г.М. | D76: Татарский язык (Татар теле) | E76: 10 | F76: Учебное пособие | BY76: ГУП РТ "Татарское книжное издательство"
A77: 13 | C77: Сафиуллина Ф.С., Ибрагимов С.М. | D77: Татарский язык (Татар теле) | E77: 11 | F77: Учебное пособие | BY77: ГУП РТ "Татарское книжное издательство"
A78: 14 | C78: Миннегулов Х.Ю., Гимадеева Н.С. | D78: Татарская литература (Татар эдэбияты) | E78: 10 | F78: Учебное пособие | G78: 1332 | H78: 456 | I78: 0 | M78: 27 | N78: 30 | P78: 15 | R78: 18 | S78: 44 | T78: 20 | V78: 28 | X78: 16 | Y78: 27 | Z78: 22 | AA78: 42 | AB78: 25 | AC78: 22 | AD78: 20 | AF78: 23 | AG78: 21 | AH78: 60 | AI78: 15 | AK78: 10 | AL78: 30 | AM78: 28 | AN78: 25 | AO78: 25 | AP78: 65 | AR78: 28 | AS78: 45 | AT78: 16 | AV78: 35 | AW78: 25 | AX78: 30 | AY78: 20 | BA78: 40 | BD78: 18 | BF78: 17 | BG78: 25 | BH78: 46 | BI78: 60 | BJ78: 40 | BN78: 20 | BO78: 23 | BQ78: 50 | BR78: 30 | BS78: 63 | BT78: 43 | BU78: =SUM(K78:BT78) -> 1332 | BV78: 26 | BW78: 11 | BX78: 10 | BY78: ГУП РТ "Татарское книжное издательство"
A79: 15 | C79: Мусин Ф.М., Хабибуллина З.Н., Закирзянов А.Н. | D79: Татарская литература (Татар эдәбияты) | E79: 11 | F79: Учебное пособие | G79: 1095 | H79: 1109 | I79: 0 | K79: 20 | M79: 26 | N79: 27 | P79: 14 | Q79: 13 | R79: 15 | S79: 40 | T79: 19 | U79: 16 | V79: 26 | W79: 31 | Y79: 25 | Z79: 21 | AA79: 35 | AB79: 20 | AC79: 11 | AD79: 16 | AE79: 14 | AF79: 22 | AG79: 20 | AH79: 55 | AI79: 13 | AK79: 9 | AL79: 8 | AM79: 27 | AN79: 23 | AO79: 21 | AP79: 50 | AR79: 27 | AS79: 41 | AT79: 15 | AV79: 32 | AW79: 21 | AX79: 25 | AY79: 20 | BA79: 19 | BG79: 24 | BH79: 45 | BJ79: 34 | BK79: 16 | BN79: 19 | BO79: 21 | BQ79: 58 | BT79: 41 | BU79: =SUM(K79:BT79) -> 1095 | BV79: 25 | BW79: 11 | BY79: ГУП РТ "Татарское книжное издательство"
C82: Начальник МКУ "Отдел образования" исполнительного комитета Мамадышского муниципального района | BY82: И.Н.Габдрахманов

Sheet Лист2

Sheet Лист3
